[Event "Titled Tuesday Blitz July 13 2021"]
[White "Koridze, Lile"]
[Black "Kavyev, Ruslan"]
[WhiteFideId "13612514"]
[BlackFideId "34110981"]
[WhiteElo "1978"]
[BlackElo "2172"]
[Result "1/2-1/2"]
[Round "01"]
[TimeControl "180+1"]
[Date "2021.07.13"]
[WhiteClock "0:01:09"]
[BlackClock "0:01:03"]

1. d4 {[%clk 0:03:00]}  Nf6 {[%clk 0:02:57]} 2. c4 {[%clk 0:03:01]}  g6 {[%clk 0:02:53]} 3. Nc3 {[%clk 0:03:00]}  Bg7 {[%clk 0:02:52]} 4. e4 {[%clk 0:03:00]}  d6 {[%clk 0:02:52]} 5. Nf3 {[%clk 0:03:00]}  O-O {[%clk 0:02:52]} 6. Be2 {[%clk 0:03:01]}  e5 {[%clk 0:02:47]} 7. O-O {[%clk 0:03:01]}  Nc6 {[%clk 0:02:47]} 8. Be3 {[%clk 0:03:01]}  Ng4 {[%clk 0:02:46]} 9. Bg5 {[%clk 0:03:01]}  f6 {[%clk 0:02:43]} 10. Bc1 {[%clk 0:03:01]}  f5 {[%clk 0:02:17]} 11. Bg5 {[%clk 0:03:01]}  Qe8 {[%clk 0:02:13]} 12. Nd5 {[%clk 0:03:00]}  Qf7 {[%clk 0:02:13]} 13. exf5 {[%clk 0:02:58]}  Bxf5 {[%clk 0:02:11]} 14. dxe5 {[%clk 0:02:58]}  Ncxe5 {[%clk 0:02:10]} 15. Nxe5 {[%clk 0:02:49]}  Nxe5 {[%clk 0:02:10]} 16. Ne7+ {[%clk 0:02:48]}  Kh8 {[%clk 0:02:10]} 17. Nxf5 {[%clk 0:02:49]}  Qxf5 {[%clk 0:02:11]} 18. Be3 {[%clk 0:02:49]}  Rae8 {[%clk 0:02:10]} 19. Qd2 {[%clk 0:02:43]}  Ng4 {[%clk 0:02:08]} 20. Bxg4 {[%clk 0:02:40]}  Qxg4 {[%clk 0:02:08]} 21. h3 {[%clk 0:02:39]}  Qxc4 {[%clk 0:02:08]} 22. Rac1 {[%clk 0:02:38]}  Qf7 {[%clk 0:02:08]} 23. Rc2 {[%clk 0:02:37]}  a6 {[%clk 0:01:44]} 24. Rfc1 {[%clk 0:02:37]}  Re7 {[%clk 0:01:43]} 25. Rc4 {[%clk 0:02:32]}  d5 {[%clk 0:01:33]} 26. Rf4 {[%clk 0:02:31]}  Qe6 {[%clk 0:01:28]} 27. Rxf8+ {[%clk 0:02:31]}  Bxf8 {[%clk 0:01:28]} 28. Bc5 {[%clk 0:02:25]}  Rf7 {[%clk 0:01:08]} 29. Bxf8 {[%clk 0:02:25]}  Rxf8 {[%clk 0:01:09]} 30. Rxc7 {[%clk 0:02:23]}  b5 {[%clk 0:01:03]} 31. Qd4+ {[%clk 0:01:54]}  Qf6 {[%clk 0:01:03]} 32. Qxf6+ {[%clk 0:01:37]}  Rxf6 {[%clk 0:01:04]} 33. Rd7 {[%clk 0:01:37]}  Rc6 {[%clk 0:01:04]} 34. Rxd5 {[%clk 0:01:27]}  Rc1+ {[%clk 0:01:04]} 35. Kh2 {[%clk 0:01:28]}  Rc2 {[%clk 0:01:05]} 36. Rd6 {[%clk 0:01:22]}  Rxb2 {[%clk 0:01:05]} 37. Rxa6 {[%clk 0:01:22]}  Rxf2 {[%clk 0:01:06]} 38. Rb6 {[%clk 0:01:22]}  Rb2 {[%clk 0:01:03]} 39. a4 {[%clk 0:01:16]}  b4 {[%clk 0:01:03]} 40. a5 {[%clk 0:01:16]}  b3 {[%clk 0:01:03]} 41. a6 {[%clk 0:01:17]}  Ra2 {[%clk 0:01:03]} 42. Rxb3 {[%clk 0:01:09]}  Rxa6 {[%clk 0:01:03]} 43. Rb7 {[%clk 0:01:09]} 1/2-1/2


[Site "https://www.chess.com"]

[Event "Titled Tuesday Blitz July 13 2021"]
[White "Laxman, R.R."]
[Black "Viskelis, Darius"]
[WhiteFideId "5005361"]
[BlackFideId "12800830"]
[WhiteElo "2476"]
[BlackElo "2006"]
[Result "1-0"]
[Round "01"]
[TimeControl "180+1"]
[Date "2021.07.13"]
[WhiteClock "0:02:07"]
[BlackClock "0:00:07"]

1. d4 {[%clk 0:03:00]}  d5 {[%clk 0:02:59]} 2. Nf3 {[%clk 0:03:00]}  e6 {[%clk 0:02:59]} 3. c4 {[%clk 0:03:00]}  c5 {[%clk 0:02:59]} 4. cxd5 {[%clk 0:02:59]}  exd5 {[%clk 0:03:00]} 5. Nc3 {[%clk 0:02:58]}  Nf6 {[%clk 0:02:58]} 6. g3 {[%clk 0:02:58]}  Nc6 {[%clk 0:02:57]} 7. Bg2 {[%clk 0:02:58]}  cxd4 {[%clk 0:02:58]} 8. Nxd4 {[%clk 0:02:58]}  Bc5 {[%clk 0:02:58]} 9. Nb3 {[%clk 0:02:56]}  Bb6 {[%clk 0:02:58]} 10. O-O {[%clk 0:02:55]}  d4 {[%clk 0:02:57]} 11. Na4 {[%clk 0:02:54]}  O-O {[%clk 0:02:56]} 12. Nxb6 {[%clk 0:02:53]}  axb6 {[%clk 0:02:54]} 13. Bxc6 {[%clk 0:02:52]}  bxc6 {[%clk 0:02:54]} 14. Qxd4 {[%clk 0:02:53]}  c5 {[%clk 0:02:49]} 15. Qxd8 {[%clk 0:02:52]}  Rxd8 {[%clk 0:02:50]} 16. Bg5 {[%clk 0:02:53]}  Be6 {[%clk 0:02:41]} 17. Rad1 {[%clk 0:02:49]}  h6 {[%clk 0:02:15]} 18. Bxf6 {[%clk 0:02:48]}  gxf6 {[%clk 0:02:16]} 19. Nc1 {[%clk 0:02:48]}  Rxd1 {[%clk 0:02:13]} 20. Rxd1 {[%clk 0:02:48]}  Bxa2 {[%clk 0:02:13]} 21. Rd6 {[%clk 0:02:44]}  Be6 {[%clk 0:02:02]} 22. Nd3 {[%clk 0:02:44]}  c4 {[%clk 0:01:40]} 23. Nf4 {[%clk 0:02:42]}  b5 {[%clk 0:01:39]} 24. Nxe6 {[%clk 0:02:42]}  fxe6 {[%clk 0:01:40]} 25. Rb6 {[%clk 0:02:40]}  Ra5 {[%clk 0:01:31]} 26. Kg2 {[%clk 0:02:40]}  Kf7 {[%clk 0:01:31]} 27. Kf3 {[%clk 0:02:40]}  f5 {[%clk 0:01:27]} 28. Kf4 {[%clk 0:02:40]}  Kf6 {[%clk 0:01:26]} 29. f3 {[%clk 0:02:39]}  Ra4 {[%clk 0:01:20]} 30. Rxb5 {[%clk 0:02:35]}  c3+ {[%clk 0:00:55]} 31. Ke3 {[%clk 0:02:35]}  cxb2 {[%clk 0:00:50]} 32. Rxb2 {[%clk 0:02:34]}  h5 {[%clk 0:00:46]} 33. h4 {[%clk 0:02:33]}  Rc4 {[%clk 0:00:42]} 34. Rb8 {[%clk 0:02:30]}  Ra4 {[%clk 0:00:40]} 35. Rg8 {[%clk 0:02:30]}  Ra7 {[%clk 0:00:27]} 36. Rg5 {[%clk 0:02:24]}  Rh7 {[%clk 0:00:27]} 37. Kf2 {[%clk 0:02:24]}  Rh8 {[%clk 0:00:26]} 38. Ke3 {[%clk 0:02:14]}  Kf7 {[%clk 0:00:24]} 39. Kf4 {[%clk 0:02:13]}  Kf6 {[%clk 0:00:24]} 40. e4 {[%clk 0:02:13]}  fxe4 {[%clk 0:00:19]} 41. Kxe4 {[%clk 0:02:13]}  Rh7 {[%clk 0:00:16]} 42. Ra5 {[%clk 0:02:13]}  Rg7 {[%clk 0:00:16]} 43. Kf4 {[%clk 0:02:12]}  Rh7 {[%clk 0:00:14]} 44. Rg5 {[%clk 0:02:10]}  Rh8 {[%clk 0:00:13]} 45. Rb5 {[%clk 0:02:09]}  Rh7 {[%clk 0:00:13]} 46. Rb8 {[%clk 0:02:09]}  Rh6 {[%clk 0:00:10]} 47. Rf8+ {[%clk 0:02:08]}  Ke7 {[%clk 0:00:09]} 48. Kg5 {[%clk 0:02:08]}  Rh7 {[%clk 0:00:07]} 49. Ra8 {[%clk 0:02:08]}  Rg7+ {[%clk 0:00:07]} 50. Kf4 {[%clk 0:02:07]}  Rh7 {[%clk 0:00:07]} 51. Ra7+ {[%clk 0:02:07]} 1-0


[Site "https://www.chess.com"]

[Event "Titled Tuesday Blitz July 13 2021"]
[White "Leve, Nitai"]
[Black "Shevchenko, Kirill"]
[WhiteFideId "2006898"]
[BlackFideId "14129574"]
[WhiteElo "2144"]
[BlackElo "2569"]
[Result "0-1"]
[Round "01"]
[TimeControl "180+1"]
[Date "2021.07.13"]
[WhiteClock "0:00:47"]
[BlackClock "0:01:22"]

1. e4 {[%clk 0:03:00]}  c5 {[%clk 0:02:57]} 2. Nf3 {[%clk 0:02:58]}  g6 {[%clk 0:02:57]} 3. d4 {[%clk 0:02:57]}  cxd4 {[%clk 0:02:57]} 4. Nxd4 {[%clk 0:02:58]}  Bg7 {[%clk 0:02:57]} 5. Nc3 {[%clk 0:02:59]}  Nc6 {[%clk 0:02:57]} 6. Be3 {[%clk 0:02:59]}  Nf6 {[%clk 0:02:55]} 7. Be2 {[%clk 0:02:59]}  d6 {[%clk 0:02:55]} 8. f4 {[%clk 0:02:58]}  O-O {[%clk 0:02:53]} 9. Nb3 {[%clk 0:02:58]}  a5 {[%clk 0:02:50]} 10. a4 {[%clk 0:02:58]}  Be6 {[%clk 0:02:40]} 11. g4 {[%clk 0:02:47]}  d5 {[%clk 0:02:40]} 12. f5 {[%clk 0:02:38]}  Bc8 {[%clk 0:02:39]} 13. exd5 {[%clk 0:02:30]}  Nb4 {[%clk 0:02:38]} 14. Bf3 {[%clk 0:02:18]}  gxf5 {[%clk 0:02:36]} 15. g5 {[%clk 0:02:04]}  Ng4 {[%clk 0:02:31]} 16. Bc5 {[%clk 0:01:49]}  Qc7 {[%clk 0:02:21]} 17. Qe2 {[%clk 0:01:26]}  b6 {[%clk 0:01:40]} 18. Bd4 {[%clk 0:01:21]}  Ba6 {[%clk 0:01:36]} 19. Qd2 {[%clk 0:01:13]}  Bxd4 {[%clk 0:01:33]} 20. Nxd4 {[%clk 0:01:12]}  Qe5+ {[%clk 0:01:34]} 21. Kd1 {[%clk 0:00:56]}  Ne3+ {[%clk 0:01:26]} 22. Kc1 {[%clk 0:00:56]}  Nc4 {[%clk 0:01:27]} 23. Qf2 {[%clk 0:00:52]}  Qf4+ {[%clk 0:01:22]} 24. Kd1 {[%clk 0:00:47]}  Nxb2+ {[%clk 0:01:22]} 25. Ke1 {[%clk 0:00:47]}  N2d3+ {[%clk 0:01:22]} 26. cxd3 {[%clk 0:00:47]}  Nxd3+ {[%clk 0:01:22]} 0-1


[Site "https://www.chess.com"]

[Event "Titled Tuesday Blitz July 13 2021"]
[White "Ljukin, Sergei"]
[Black "Har-Zvi, Ronen"]
[WhiteFideId "14102200"]
[BlackFideId "2801485"]
[WhiteElo "2309"]
[BlackElo "2523"]
[Result "1/2-1/2"]
[Round "01"]
[TimeControl "180+1"]
[Date "2021.07.13"]
[WhiteClock "0:00:12"]
[BlackClock "0:01:46"]

1. e4 {[%clk 0:02:57]}  c6 {[%clk 0:02:59]} 2. d4 {[%clk 0:02:57]}  d5 {[%clk 0:03:00]} 3. e5 {[%clk 0:02:57]}  Bf5 {[%clk 0:02:59]} 4. Nd2 {[%clk 0:02:57]}  e6 {[%clk 0:02:59]} 5. Nb3 {[%clk 0:02:57]}  h6 {[%clk 0:02:59]} 6. Nf3 {[%clk 0:02:57]}  Ne7 {[%clk 0:02:59]} 7. Be2 {[%clk 0:02:57]}  Nd7 {[%clk 0:02:59]} 8. O-O {[%clk 0:02:57]}  Bh7 {[%clk 0:02:55]} 9. a4 {[%clk 0:02:57]}  c5 {[%clk 0:02:55]} 10. dxc5 {[%clk 0:02:50]}  Nc6 {[%clk 0:02:54]} 11. Be3 {[%clk 0:02:15]}  Ndxe5 {[%clk 0:02:53]} 12. Nxe5 {[%clk 0:02:14]}  Nxe5 {[%clk 0:02:54]} 13. f4 {[%clk 0:02:06]}  Nc6 {[%clk 0:02:52]} 14. Nd4 {[%clk 0:01:56]}  Bxc5 {[%clk 0:02:49]} 15. Kh1 {[%clk 0:01:48]}  Nxd4 {[%clk 0:02:35]} 16. Bxd4 {[%clk 0:01:47]}  Bxd4 {[%clk 0:02:35]} 17. Qxd4 {[%clk 0:01:47]}  O-O {[%clk 0:02:36]} 18. c3 {[%clk 0:01:40]}  Qb6 {[%clk 0:02:36]} 19. Qd2 {[%clk 0:01:37]}  Rad8 {[%clk 0:02:35]} 20. a5 {[%clk 0:01:33]}  Qc5 {[%clk 0:02:35]} 21. Rfd1 {[%clk 0:01:27]}  a6 {[%clk 0:02:25]} 22. Qd4 {[%clk 0:01:22]}  Rc8 {[%clk 0:02:25]} 23. Qxc5 {[%clk 0:01:12]}  Rxc5 {[%clk 0:02:25]} 24. Rd4 {[%clk 0:01:04]}  Rfc8 {[%clk 0:02:24]} 25. Kg1 {[%clk 0:01:00]}  Be4 {[%clk 0:02:22]} 26. Kf2 {[%clk 0:00:57]}  f5 {[%clk 0:02:22]} 27. g3 {[%clk 0:00:56]}  Kf7 {[%clk 0:02:22]} 28. Rb4 {[%clk 0:00:56]}  R8c7 {[%clk 0:02:21]} 29. Ke3 {[%clk 0:00:53]}  g5 {[%clk 0:02:18]} 30. Kd4 {[%clk 0:00:50]}  Kf6 {[%clk 0:02:16]} 31. Rb6 {[%clk 0:00:44]}  R5c6 {[%clk 0:02:16]} 32. Rxc6 {[%clk 0:00:39]}  Rxc6 {[%clk 0:02:15]} 33. Ra4 {[%clk 0:00:39]}  gxf4 {[%clk 0:02:05]} 34. gxf4 {[%clk 0:00:39]}  Rc7 {[%clk 0:02:03]} 35. Rb4 {[%clk 0:00:39]}  Rg7 {[%clk 0:02:01]} 36. Bh5 {[%clk 0:00:28]}  Rc7 {[%clk 0:01:52]} 37. Be2 {[%clk 0:00:25]}  Bg2 {[%clk 0:01:49]} 38. Rb6 {[%clk 0:00:21]}  Be4 {[%clk 0:01:46]} 39. Rb4 {[%clk 0:00:12]} 1/2-1/2


[Site "https://www.chess.com"]

[Event "Titled Tuesday Blitz July 13 2021"]
[White "Matveev, Vladimir"]
[Black "Tomiello, Mateus Costamilan"]
[WhiteFideId "24130753"]
[BlackFideId "22701958"]
[WhiteElo "2354"]
[BlackElo "1995"]
[Result "1-0"]
[Round "01"]
[TimeControl "180+1"]
[Date "2021.07.13"]
[WhiteClock "0:01:05"]
[BlackClock "0:00:02"]

1. d4 {[%clk 0:03:00]}  d5 {[%clk 0:02:58]} 2. c4 {[%clk 0:03:00]}  e6 {[%clk 0:02:58]} 3. Nf3 {[%clk 0:03:00]}  Nf6 {[%clk 0:02:58]} 4. Nc3 {[%clk 0:03:00]}  c6 {[%clk 0:02:56]} 5. Qb3 {[%clk 0:02:58]}  Be7 {[%clk 0:02:52]} 6. Bg5 {[%clk 0:02:58]}  O-O {[%clk 0:02:52]} 7. e3 {[%clk 0:02:58]}  dxc4 {[%clk 0:02:51]} 8. Bxc4 {[%clk 0:02:57]}  b5 {[%clk 0:02:51]} 9. Be2 {[%clk 0:02:57]}  Bb7 {[%clk 0:02:36]} 10. O-O {[%clk 0:02:54]}  a6 {[%clk 0:02:35]} 11. a4 {[%clk 0:02:54]}  b4 {[%clk 0:02:33]} 12. Bxf6 {[%clk 0:02:53]}  gxf6 {[%clk 0:02:27]} 13. Ne4 {[%clk 0:02:52]}  Nd7 {[%clk 0:02:20]} 14. Rfc1 {[%clk 0:02:47]}  f5 {[%clk 0:02:17]} 15. Nc5 {[%clk 0:02:27]}  Nxc5 {[%clk 0:02:14]} 16. dxc5 {[%clk 0:02:28]}  a5 {[%clk 0:02:12]} 17. Nd4 {[%clk 0:02:28]}  Bf6 {[%clk 0:02:00]} 18. Rd1 {[%clk 0:02:27]}  Qe7 {[%clk 0:01:52]} 19. Rac1 {[%clk 0:02:22]}  Rfd8 {[%clk 0:01:49]} 20. Bf3 {[%clk 0:02:22]}  Rac8 {[%clk 0:01:28]} 21. Qc4 {[%clk 0:02:20]}  Kh8 {[%clk 0:01:20]} 22. b3 {[%clk 0:02:19]}  Qc7 {[%clk 0:00:54]} 23. g3 {[%clk 0:02:16]}  Rd7 {[%clk 0:00:45]} 24. Rc2 {[%clk 0:02:10]}  Rcd8 {[%clk 0:00:45]} 25. Rcd2 {[%clk 0:02:10]}  e5 {[%clk 0:00:35]} 26. Qc2 {[%clk 0:02:05]}  exd4 {[%clk 0:00:32]} 27. exd4 {[%clk 0:02:06]}  Rxd4 {[%clk 0:00:30]} 28. Rxd4 {[%clk 0:02:04]}  Rxd4 {[%clk 0:00:30]} 29. Qxf5 {[%clk 0:02:05]}  Rxd1+ {[%clk 0:00:27]} 30. Bxd1 {[%clk 0:02:05]}  Qe7 {[%clk 0:00:26]} 31. Bc2 {[%clk 0:02:05]}  Kg8 {[%clk 0:00:18]} 32. Qxh7+ {[%clk 0:02:05]}  Kf8 {[%clk 0:00:19]} 33. Qf5 {[%clk 0:02:06]}  Qe6 {[%clk 0:00:16]} 34. Qf4 {[%clk 0:02:04]}  Be5 {[%clk 0:00:15]} 35. Qh4 {[%clk 0:02:01]}  Qe7 {[%clk 0:00:14]} 36. Qh6+ {[%clk 0:01:58]}  Bg7 {[%clk 0:00:14]} 37. Qf4 {[%clk 0:01:58]}  Bc8 {[%clk 0:00:11]} 38. Qb8 {[%clk 0:01:55]}  Qd7 {[%clk 0:00:10]} 39. h4 {[%clk 0:01:51]}  Ke8 {[%clk 0:00:09]} 40. Qf4 {[%clk 0:01:48]}  Qe7 {[%clk 0:00:08]} 41. Qb8 {[%clk 0:01:42]}  Kd8 {[%clk 0:00:08]} 42. Qf4 {[%clk 0:01:37]}  Be5 {[%clk 0:00:08]} 43. Qe3 {[%clk 0:01:35]}  Bg4 {[%clk 0:00:07]} 44. Qe4 {[%clk 0:01:34]}  Bd7 {[%clk 0:00:06]} 45. h5 {[%clk 0:01:32]}  Qf6 {[%clk 0:00:07]} 46. Bd1 {[%clk 0:01:28]}  Bd4 {[%clk 0:00:07]} 47. Bf3 {[%clk 0:01:27]}  Bf5 {[%clk 0:00:07]} 48. Qxc6 {[%clk 0:01:27]}  Qxc6 {[%clk 0:00:07]} 49. Bxc6 {[%clk 0:01:27]}  Bxc5 {[%clk 0:00:08]} 50. Kg2 {[%clk 0:01:28]}  Bc2 {[%clk 0:00:08]} 51. Bd5 {[%clk 0:01:28]}  Ke7 {[%clk 0:00:08]} 52. f4 {[%clk 0:01:28]}  Kf6 {[%clk 0:00:09]} 53. Kf3 {[%clk 0:01:28]}  Bd1+ {[%clk 0:00:09]} 54. Ke4 {[%clk 0:01:27]}  Bxh5 {[%clk 0:00:10]} 55. Kd3 {[%clk 0:01:27]}  Bg6+ {[%clk 0:00:10]} 56. Kc4 {[%clk 0:01:28]}  Be7 {[%clk 0:00:09]} 57. g4 {[%clk 0:01:28]}  Bc2 {[%clk 0:00:08]} 58. Kb5 {[%clk 0:01:26]}  Bd8 {[%clk 0:00:09]} 59. Kc6 {[%clk 0:01:26]}  Ke7 {[%clk 0:00:09]} 60. Kb5 {[%clk 0:01:21]}  Kd6 {[%clk 0:00:09]} 61. Bxf7 {[%clk 0:01:20]}  Bc7 {[%clk 0:00:09]} 62. Bc4 {[%clk 0:01:18]}  Bd8 {[%clk 0:00:09]} 63. f5 {[%clk 0:01:18]}  Ke5 {[%clk 0:00:08]} 64. Kc6 {[%clk 0:01:18]}  Be4+ {[%clk 0:00:08]} 65. Kd7 {[%clk 0:01:18]}  Bg5 {[%clk 0:00:09]} 66. Kc7 {[%clk 0:01:14]}  Be3 {[%clk 0:00:07]} 67. Kd7 {[%clk 0:01:10]}  Kd4 {[%clk 0:00:06]} 68. Ke6 {[%clk 0:01:10]}  Bg5 {[%clk 0:00:04]} 69. f6 {[%clk 0:01:10]}  Bg6 {[%clk 0:00:03]} 70. f7 {[%clk 0:01:09]}  Bh6 {[%clk 0:00:03]} 71. Kf6 {[%clk 0:01:10]}  Bh7 {[%clk 0:00:03]} 72. g5 {[%clk 0:01:10]}  Bf8 {[%clk 0:00:04]} 73. g6 {[%clk 0:01:11]}  Bxg6 {[%clk 0:00:04]} 74. Kxg6 {[%clk 0:01:12]}  Kc5 {[%clk 0:00:05]} 75. Kf6 {[%clk 0:01:12]}  Kd6 {[%clk 0:00:05]} 76. Bf1 {[%clk 0:01:10]}  Kd7 {[%clk 0:00:04]} 77. Bh3+ {[%clk 0:01:08]}  Kd6 {[%clk 0:00:05]} 78. Be6 {[%clk 0:01:09]}  Kc5 {[%clk 0:00:04]} 79. Ke5 {[%clk 0:01:06]}  Be7 {[%clk 0:00:04]} 80. Bc4 {[%clk 0:01:04]}  Kb6 {[%clk 0:00:02]} 81. Ke6 {[%clk 0:01:04]}  Bf8 {[%clk 0:00:02]} 82. Kd7 {[%clk 0:01:05]} 1-0


[Site "https://www.chess.com"]

[Event "Titled Tuesday Blitz July 13 2021"]
[White "Moskalenko, Alexander"]
[Black "Turzo, Attila"]
[WhiteFideId "4155351"]
[BlackFideId "704954"]
[WhiteElo "2495"]
[BlackElo "2434"]
[Result "1-0"]
[Round "01"]
[TimeControl "180+1"]
[Date "2021.07.13"]
[WhiteClock "0:02:03"]
[BlackClock "0:00:58"]

1. g3 {[%clk 0:02:58]}  d5 {[%clk 0:02:58]} 2. Bg2 {[%clk 0:02:59]}  c6 {[%clk 0:02:59]} 3. d3 {[%clk 0:02:59]}  Nf6 {[%clk 0:02:59]} 4. Nd2 {[%clk 0:02:59]}  e5 {[%clk 0:02:49]} 5. e4 {[%clk 0:02:57]}  Bd6 {[%clk 0:02:46]} 6. Ngf3 {[%clk 0:02:57]}  O-O {[%clk 0:02:46]} 7. O-O {[%clk 0:02:57]}  Bg4 {[%clk 0:02:46]} 8. h3 {[%clk 0:02:57]}  Bh5 {[%clk 0:02:43]} 9. Qe1 {[%clk 0:02:56]}  dxe4 {[%clk 0:02:42]} 10. Nxe4 {[%clk 0:02:48]}  Nxe4 {[%clk 0:02:41]} 11. dxe4 {[%clk 0:02:49]}  Nd7 {[%clk 0:02:40]} 12. Nh4 {[%clk 0:02:47]}  Qc7 {[%clk 0:02:33]} 13. Nf5 {[%clk 0:02:47]}  Rfe8 {[%clk 0:02:32]} 14. Nxd6 {[%clk 0:02:46]}  Qxd6 {[%clk 0:02:32]} 15. Be3 {[%clk 0:02:46]}  f6 {[%clk 0:02:26]} 16. Qa5 {[%clk 0:02:45]}  b6 {[%clk 0:02:23]} 17. Qa6 {[%clk 0:02:45]}  Qc7 {[%clk 0:02:22]} 18. h4 {[%clk 0:02:42]}  Bg4 {[%clk 0:02:20]} 19. a4 {[%clk 0:02:40]}  Nb8 {[%clk 0:02:14]} 20. Qc4+ {[%clk 0:02:39]}  Be6 {[%clk 0:02:13]} 21. Qc3 {[%clk 0:02:39]}  a5 {[%clk 0:02:13]} 22. Rfd1 {[%clk 0:02:36]}  c5 {[%clk 0:02:10]} 23. Bf1 {[%clk 0:02:34]}  Nc6 {[%clk 0:02:08]} 24. Bc4 {[%clk 0:02:33]}  Bxc4 {[%clk 0:01:59]} 25. Qxc4+ {[%clk 0:02:34]}  Qf7 {[%clk 0:01:58]} 26. Qb5 {[%clk 0:02:33]}  Qc7 {[%clk 0:01:58]} 27. c3 {[%clk 0:02:32]}  Red8 {[%clk 0:01:54]} 28. Rd5 {[%clk 0:02:19]}  Ne7 {[%clk 0:01:51]} 29. Rxd8+ {[%clk 0:02:13]}  Rxd8 {[%clk 0:01:52]} 30. b4 {[%clk 0:02:13]}  axb4 {[%clk 0:01:41]} 31. cxb4 {[%clk 0:02:13]}  Rc8 {[%clk 0:01:32]} 32. bxc5 {[%clk 0:02:12]}  bxc5 {[%clk 0:01:33]} 33. Qc4+ {[%clk 0:02:13]}  Kh8 {[%clk 0:01:31]} 34. a5 {[%clk 0:02:14]}  Ng6 {[%clk 0:01:18]} 35. a6 {[%clk 0:02:13]}  Nf8 {[%clk 0:01:15]} 36. a7 {[%clk 0:02:11]}  Qc6 {[%clk 0:01:10]} 37. Qxc5 {[%clk 0:02:09]}  Qa8 {[%clk 0:01:06]} 38. Qd5 {[%clk 0:02:03]}  Ng6 {[%clk 0:01:04]} 39. Qxa8 {[%clk 0:02:02]}  Rxa8 {[%clk 0:01:03]} 40. Rb1 {[%clk 0:02:02]}  Nf8 {[%clk 0:00:58]} 41. Rb8 {[%clk 0:02:03]} 1-0


[Site "https://www.chess.com"]

[Event "Titled Tuesday Blitz July 13 2021"]
[White "Nakamura, Hikaru"]
[Black "Manukyan, Sargis A."]
[WhiteFideId "2016192"]
[BlackFideId "13303970"]
[WhiteElo "2900"]
[BlackElo "2187"]
[Result "1-0"]
[Round "01"]
[TimeControl "180+1"]
[Date "2021.07.13"]
[WhiteClock "0:01:57"]
[BlackClock "0:00:13"]

1. e4 {[%clk 0:02:59]}  c5 {[%clk 0:02:59]} 2. Nf3 {[%clk 0:02:56]}  d6 {[%clk 0:02:59]} 3. d4 {[%clk 0:02:55]}  cxd4 {[%clk 0:02:59]} 4. Qxd4 {[%clk 0:02:56]}  Nc6 {[%clk 0:02:57]} 5. Bb5 {[%clk 0:02:54]}  Bd7 {[%clk 0:02:54]} 6. Bxc6 {[%clk 0:02:53]}  Bxc6 {[%clk 0:02:55]} 7. Nc3 {[%clk 0:02:52]}  Nf6 {[%clk 0:02:54]} 8. Bg5 {[%clk 0:02:51]}  e5 {[%clk 0:02:45]} 9. Qd3 {[%clk 0:02:50]}  Be7 {[%clk 0:02:46]} 10. Bxf6 {[%clk 0:02:50]}  Bxf6 {[%clk 0:02:46]} 11. O-O-O {[%clk 0:02:51]}  Be7 {[%clk 0:02:43]} 12. Nd2 {[%clk 0:02:47]}  Qc7 {[%clk 0:02:33]} 13. Nc4 {[%clk 0:02:47]}  O-O-O {[%clk 0:02:30]} 14. Kb1 {[%clk 0:02:47]}  Rd7 {[%clk 0:02:06]} 15. Ne3 {[%clk 0:02:46]}  Bd8 {[%clk 0:02:03]} 16. Ncd5 {[%clk 0:02:45]}  Bxd5 {[%clk 0:02:03]} 17. Nxd5 {[%clk 0:02:44]}  Qc6 {[%clk 0:02:00]} 18. Qb3 {[%clk 0:02:43]}  b5 {[%clk 0:01:58]} 19. Rd3 {[%clk 0:02:43]}  Kb8 {[%clk 0:01:55]} 20. Rhd1 {[%clk 0:02:33]}  a5 {[%clk 0:01:30]} 21. c4 {[%clk 0:02:24]}  b4 {[%clk 0:01:10]} 22. f3 {[%clk 0:02:20]}  Rb7 {[%clk 0:01:09]} 23. Qc2 {[%clk 0:02:18]}  a4 {[%clk 0:01:01]} 24. Ne3 {[%clk 0:02:16]}  Bc7 {[%clk 0:00:57]} 25. Nf5 {[%clk 0:02:13]}  Rd8 {[%clk 0:00:47]} 26. c5 {[%clk 0:02:09]}  g6 {[%clk 0:00:40]} 27. Nxd6 {[%clk 0:02:05]}  Bxd6 {[%clk 0:00:40]} 28. Rxd6 {[%clk 0:02:05]}  Rxd6 {[%clk 0:00:40]} 29. Rxd6 {[%clk 0:02:03]}  Qb5 {[%clk 0:00:41]} 30. Rd8+ {[%clk 0:01:58]}  Ka7 {[%clk 0:00:28]} 31. c6 {[%clk 0:01:57]}  Rc7 {[%clk 0:00:20]} 32. Qf2+ {[%clk 0:01:57]}  Qb6 {[%clk 0:00:13]} 33. Ra8+ {[%clk 0:01:57]}  Kxa8 {[%clk 0:00:13]} 34. Qxb6 {[%clk 0:01:57]} 1-0


[Site "https://www.chess.com"]

[Event "Titled Tuesday Blitz July 13 2021"]
[White "Nguyen Hong Nhung"]
[Black "Quizon, Daniel"]
[WhiteFideId "12412201"]
[BlackFideId "5217911"]
[WhiteElo "1661"]
[BlackElo "2329"]
[Result "0-1"]
[Round "01"]
[TimeControl "180+1"]
[Date "2021.07.13"]
[WhiteClock "0:00:31"]
[BlackClock "0:01:24"]

1. e4 {[%clk 0:03:00]}  c5 {[%clk 0:02:59]} 2. Nc3 {[%clk 0:03:00]}  Nc6 {[%clk 0:02:59]} 3. Bb5 {[%clk 0:03:00]}  Nd4 {[%clk 0:02:57]} 4. Bc4 {[%clk 0:03:00]}  g6 {[%clk 0:02:57]} 5. Nf3 {[%clk 0:02:59]}  Bg7 {[%clk 0:02:57]} 6. Nxd4 {[%clk 0:03:00]}  cxd4 {[%clk 0:02:58]} 7. Qf3 {[%clk 0:03:00]}  e6 {[%clk 0:02:55]} 8. Nb5 {[%clk 0:03:00]}  d6 {[%clk 0:02:55]} 9. Qa3 {[%clk 0:03:00]}  Bf8 {[%clk 0:02:32]} 10. Nxd4 {[%clk 0:02:47]}  d5 {[%clk 0:02:23]} 11. Bb5+ {[%clk 0:02:46]}  Bd7 {[%clk 0:02:23]} 12. Qc3 {[%clk 0:02:22]}  Bg7 {[%clk 0:01:55]} 13. Bxd7+ {[%clk 0:02:15]}  Qxd7 {[%clk 0:01:54]} 14. Qe3 {[%clk 0:01:55]}  dxe4 {[%clk 0:01:51]} 15. Nb3 {[%clk 0:01:55]}  Nf6 {[%clk 0:01:45]} 16. O-O {[%clk 0:01:54]}  O-O {[%clk 0:01:45]} 17. Rd1 {[%clk 0:01:45]}  Qc7 {[%clk 0:01:44]} 18. Qc3 {[%clk 0:01:04]}  Qb8 {[%clk 0:01:40]} 19. Qg3 {[%clk 0:00:59]}  Qc8 {[%clk 0:01:39]} 20. c3 {[%clk 0:00:51]}  Rd8 {[%clk 0:01:34]} 21. d4 {[%clk 0:00:49]}  exd3 {[%clk 0:01:34]} 22. Rxd3 {[%clk 0:00:49]}  Qc4 {[%clk 0:01:35]} 23. Rxd8+ {[%clk 0:00:44]}  Rxd8 {[%clk 0:01:35]} 24. Bg5 {[%clk 0:00:44]}  Ne4 {[%clk 0:01:33]} 25. Qh4 {[%clk 0:00:40]}  Rd5 {[%clk 0:01:29]} 26. Bh6 {[%clk 0:00:36]}  Qe2 {[%clk 0:01:24]} 27. Bxg7 {[%clk 0:00:34]}  Rd1+ {[%clk 0:01:23]} 28. Rxd1 {[%clk 0:00:31]}  Qxd1# {[%clk 0:01:24]} 0-1


[Site "https://www.chess.com"]